fUSD/lending_fUSD_20260116
["ID","MTS","AMOUNT","RATE_DAILY","PERIOD"]
[402160981,1768553757648,-150.0,0.00041085,7]
[402160982,1768553757658,-150.0,0.00041094,120]
[402160983,1768553757669,-151.0,0.00041094,30]
[402160984,1768553757679,-461.67526834,0.00041094,30]
[402160985,1768553757689,-500.0,0.00041094,30]
[402160986,1768553757698,-1239.0,0.00041094,30]
[402160987,1768553757707,-2000.0,0.00041094,30]
[402160988,1768553757716,-168.3888056,0.00041094,30]
[402160989,1768553757726,-1000.0,0.00041094,30]
[402160990,1768553757736,-151.0,0.00041094,30]
[402160991,1768553757745,-3000.0,0.00041094,30]
[402160992,1768553757754,-151.0,0.00041094,30]
[402160993,1768553757764,-250.0,0.00041094,30]
[402160994,1768553757773,-600.0,0.00041094,30]
[402160995,1768553757782,-7681.20591386,0.00041094,30]
[402160996,1768553757792,-1000.0,0.00041094,30]
[402160997,1768553757801,-168.3888056,0.00041094,30]
[402160998,1768553757811,-500.0,0.00041094,30]
[402160999,1768553757820,-500.0,0.00041094,30]
[402161000,1768553757829,-1500.0,0.00041094,30]
[402161001,1768553757839,-500.0,0.00041094,30]
[402161002,1768553757847,-250.0,0.00041094,30]
[402161003,1768553757858,-500.0,0.00041094,30]
[402161004,1768553757868,-500.0,0.00041094,30]
[402161005,1768553757877,-500.0,0.00041094,30]
[402161007,1768553757886,-151.0,0.00041094,30]
[402161008,1768553757897,-557.5788265,0.00041094,30]
[402161009,1768553757905,-579.88197956,0.00041094,30]
[402161010,1768553757914,-500.0,0.00041095,120]
[402161011,1768553757923,-500.0,0.00041095,120]
[402161012,1768553757932,-500.0,0.00041095,120]
[402161013,1768553757941,-500.0,0.00041095,120]
[402161015,1768553758270,-500.0,0.00041095,120]
[402161016,1768553758280,-500.0,0.00041095,120]
[402161017,1768553758289,-500.0,0.00041095,120]
[402161018,1768553758298,-500.0,0.00041095,120]
[402161019,1768553758307,-500.0,0.00041095,120]
[402161020,1768553758316,-500.0,0.00041095,120]
[402161021,1768553758325,-500.0,0.00041095,120]
[402161022,1768553758336,-500.0,0.00041095,120]
[402161023,1768553758346,-567.28,0.00041095,10]
[402161024,1768553758359,-6000.0,0.00041095,5]
[402161025,1768553758368,-4000.0,0.00041095,5]
[402161026,1768553758378,-1031.15,0.00041095,10]
[402161027,1768553758387,-808.21,0.00041095,10]
[402161028,1768553758396,-813.73,0.00041095,10]
[402161029,1768553758405,-973.06,0.00041095,10]
[402161030,1768553758414,-504.36,0.00041095,10]
[402161031,1768553758424,-674.01,0.00041095,10]
[402161032,1768553758432,-500.0,0.00041095,10]
[402161033,1768553758442,-1037.35,0.00041095,10]
[402161034,1768553758451,-500.0,0.00041095,120]
[402161035,1768553758460,-500.0,0.00041095,120]
[402161036,1768553758469,-500.0,0.00041095,120]
[402161037,1768553758478,-500.0,0.00041095,120]
[402161038,1768553758487,-500.0,0.00041095,120]
[402161039,1768553758497,-500.0,0.00041095,120]
[402161040,1768553758506,-500.0,0.00041095,120]
[402161041,1768553758515,-505.73004147,0.00041095,120]
[402161042,1768553758525,-525.62,0.00041095,10]
[402161043,1768553758534,-1211.73,0.00041095,10]
[402161044,1768553758543,-654.54,0.00041095,10]
[402161045,1768553758553,-902.4,0.00041095,10]
[402161046,1768553758563,-548.97,0.00041095,10]
[402161047,1768553758574,-915.0,0.00041095,10]
[402161048,1768553758584,-786.94,0.00041095,10]
[402161049,1768553758593,-1003.52,0.00041095,10]
[402161050,1768553758602,-837.95,0.00041095,10]
[402161051,1768553758611,-551.36,0.00041095,10]
[402161052,1768553758621,-548.17,0.00041095,10]
[402161053,1768553758630,-1196.74,0.00041095,10]
[402161054,1768553758639,-587.74,0.00041095,10]
[402161055,1768553758651,-1100.8,0.00041095,10]
[402161056,1768553758660,-1067.27,0.00041095,10]
[402161057,1768553758669,-826.56,0.00041095,10]
[402161058,1768553758679,-875.73,0.00041095,10]
[402161059,1768553758689,-866.61,0.00041095,10]
[402161060,1768553758699,-542.86,0.00041095,10]
[402161061,1768553758709,-513.96,0.00041095,10]
[402161062,1768553758719,-853.02,0.00041095,10]
[402161063,1768553758731,-568.61,0.00041095,10]
[402161064,1768553758741,-625.29,0.00041095,10]
[402161065,1768553758751,-500.0,0.00041095,10]
[402161066,1768553758760,-500.0,0.00041095,10]
[402161067,1768553758770,-503.47,0.00041095,10]
[402161068,1768553758779,-1479.39,0.00041095,10]
[402161069,1768553758788,-668.37,0.00041095,10]
[402161070,1768553758798,-554.51,0.00041095,10]
[402161071,1768553758807,-823.81,0.00041095,10]
[402161072,1768553758816,-522.66,0.00041095,10]
[402161073,1768553758826,-632.8,0.00041095,10]
[402161074,1768553758835,-760.77,0.00041095,10]
[402161075,1768553758844,-540.98,0.00041095,10]
[402161076,1768553758854,-513.95,0.00041095,10]
[402161077,1768553758863,-543.44,0.00041095,10]
[402161078,1768553758873,-766.12,0.00041095,10]
[402161079,1768553758882,-745.1,0.00041095,10]
[402161080,1768553758892,-602.84,0.00041095,10]
[402161081,1768553758902,-681.64,0.00041095,10]
[402161082,1768553758912,-946.6,0.00041095,10]
[402161083,1768553758922,-982.01,0.00041095,10]
[402161084,1768553758932,-1431.59,0.00041095,10]
[402161085,1768553758942,-582.81,0.00041095,10]
[402161086,1768553758951,-1103.68,0.00041095,30]
[402161087,1768553758960,-500.0,0.00041095,10]
[402161088,1768553758970,-500.0,0.00041095,10]
[402161089,1768553758980,-872.15,0.00041095,10]
[402161090,1768553758989,-703.99,0.00041095,10]
[402161091,1768553758999,-548.64,0.00041095,10]
[402161092,1768553759009,-850.54,0.00041095,10]
[402161093,1768553759018,-1034.71,0.00041095,10]
[402161094,1768553759028,-500.0,0.00041095,10]
[402161095,1768553759037,-712.34,0.00041095,10]
[402161096,1768553759047,-500.0,0.00041095,10]
[402161097,1768553759057,-1048.59,0.00041095,10]
[402161098,1768553759066,-797.78,0.00041095,10]
[402161099,1768553759075,-864.57,0.00041095,10]
[402161100,1768553759084,-669.34,0.00041095,10]
[402161101,1768553759094,-500.0,0.00041095,10]
[402161102,1768553759104,-1695.98,0.00041095,10]
[402161103,1768553759113,-710.63,0.00041095,10]
[402161104,1768553759123,-746.93,0.00041095,10]
[402161105,1768553759132,-576.53,0.00041095,10]
[402161106,1768553759141,-551.55,0.00041095,10]
[402161107,1768553759151,-848.31,0.00041095,10]
[402161108,1768553759161,-231.01314108,0.00041095,10]
[402161109,1768553759170,-640.15,0.00041095,10]
[402161110,1768553759180,-829.07,0.00041095,10]
[402161111,1768553759189,-893.03,0.00041095,10]
[402161112,1768553759199,-1044.65,0.00041095,2]
[402161113,1768553759208,-580.09,0.00041095,10]
[402161114,1768553759218,-2280.83,0.00041095,10]
[402161115,1768553759227,-950.38,0.00041095,10]
[402161116,1768553759237,-925.85,0.00041095,10]
[402161117,1768553759246,-926.38,0.00041095,10]
[402161118,1768553759256,-1091.37,0.00041095,10]
[402161119,1768553759265,-934.74,0.00041095,10]
[402161120,1768553759275,-1096.7,0.00041095,10]
[402161121,1768553759284,-615.77,0.00041095,10]
[402161122,1768553759293,-694.36,0.00041095,10]
[402161123,1768553759303,-816.08,0.00041095,10]
[402161124,1768553759312,-703.54,0.00041095,10]
[402161125,1768553759321,-2000.78,0.00041095,10]
[402161126,1768553759331,-1150.42,0.00041095,10]
[402161127,1768553759340,-658.36,0.00041095,10]
[402161128,1768553759349,-788.58,0.00041095,10]
[402161129,1768553759358,-578.18,0.00041095,10]
[402161130,1768553759368,-500.0,0.00041095,10]
[402161131,1768553759377,-1428.02,0.00041095,10]
[402161132,1768553759386,-705.82,0.00041095,10]
[402161133,1768553759395,-931.05,0.00041095,10]
[402161134,1768553759405,-577.64,0.00041095,10]
[402161135,1768553759414,-528.44,0.00041095,10]
[402161136,1768553759424,-2108.45,0.00041095,10]
[402161137,1768553759433,-1149.82,0.00041095,10]
[402161138,1768553759443,-273.25324535,0.00041095,10]
[402161139,1768553759452,-683.35,0.00041095,10]
[402161140,1768553759462,-959.04,0.00041095,10]
[402161141,1768553759471,-700.17,0.00041095,10]
[402161142,1768553759481,-625.74,0.00041095,10]
[402161143,1768553759490,-754.4,0.00041095,10]
[402161144,1768553759500,-500.0,0.00041095,10]
[402161145,1768553759509,-737.5,0.00041095,10]
[402161146,1768553759519,-625.2,0.00041095,10]
[402161147,1768553759528,-641.84,0.00041095,10]
[402161148,1768553759538,-610.78,0.00041095,10]
[402161149,1768553759547,-544.89,0.00041095,10]
[402161150,1768553759556,-523.76,0.00041095,10]
[402161151,1768553759565,-637.87,0.00041095,10]
[402161152,1768553759575,-551.65,0.00041095,10]
[402161153,1768553759588,-1594.08,0.00041095,10]
[402161154,1768553759597,-796.44,0.00041095,10]
[402161155,1768553759606,-622.19762563,0.00041095,10]
[402161156,1768553759615,-1146.06,0.00041095,10]
[402161157,1768553759626,-500.0,0.00041095,10]
[402161158,1768553759636,-567.16,0.00041095,10]
[402161159,1768553759645,-615.7867798,0.00041095,10]
[402161160,1768553759656,-522.75,0.00041095,10]
[402161161,1768553759666,-517.33,0.00041095,10]
[402161162,1768553759675,-500.0,0.00041095,10]
[402161163,1768553759684,-751.2,0.00041095,10]
[402161164,1768553759694,-662.29,0.00041095,10]
[402161165,1768553759703,-669.08,0.00041095,10]
[402161166,1768553759713,-248.72312903,0.00041095,10]
[402161167,1768553759722,-677.54,0.00041095,10]
[402161168,1768553759731,-1168.86,0.00041095,10]
[402161169,1768553759740,-1117.06,0.00041095,10]
[402161170,1768553759750,-1648.88,0.00041095,10]
[402161171,1768553759760,-636.52,0.00041095,10]
[402161172,1768553759769,-636.43,0.00041095,10]
[402161173,1768553759778,-575.94,0.00041095,10]
[402161174,1768553759788,-716.91,0.00041095,10]
[402161175,1768553759797,-876.77,0.00041095,10]
[402161176,1768553759807,-500.0,0.00041095,10]
[402161177,1768553759817,-990.78,0.00041095,10]
[402161178,1768553759826,-1150.93,0.00041095,10]
[402161179,1768553759835,-909.88,0.00041095,10]
[402161180,1768553759845,-541.15,0.00041095,10]
[402161181,1768553759854,-239.48293259,0.00041095,10]
[402161182,1768553759863,-527.48,0.00041095,10]
[402161183,1768553759872,-500.0,0.00041095,10]
[402161184,1768553759882,-744.14,0.00041095,10]
[402161185,1768553759891,-903.48,0.00041095,10]
[402161186,1768553759901,-507.96,0.00041095,10]
[402161187,1768553759911,-662.66,0.00041095,10]
[402161188,1768553759922,-690.13,0.00041095,10]
[402161189,1768553759931,-519.9,0.00041095,10]
[402161190,1768553759943,-1521.24,0.00041095,10]
[402161191,1768553759952,-823.6,0.00041095,10]
[402161192,1768553759962,-500.0,0.00041095,10]
[402161193,1768553759971,-500.0,0.00041095,10]
[402161194,1768553759981,-1331.43,0.00041095,10]
[402161195,1768553759990,-732.95,0.00041095,10]
[402161196,1768553760000,-1326.59,0.00041095,10]
[402161197,1768553760010,-1280.38,0.00041095,10]
[402161198,1768553760020,-791.99,0.00041095,10]
[402161199,1768553760030,-500.0,0.00041095,10]
[402161200,1768553760040,-512.72,0.00041095,10]
[402161201,1768553760050,-979.74,0.00041095,10]
[402161202,1768553760060,-500.0,0.00041095,10]
[402161203,1768553760070,-644.37,0.00041095,10]
[402161204,1768553760080,-577.2,0.00041095,10]
[402161205,1768553760091,-970.71,0.00041095,10]
[402161206,1768553760101,-570.0,0.00041095,10]
[402161207,1768553760111,-500.0,0.00041095,10]
[402161208,1768553760121,-500.0,0.00041095,10]
[402161209,1768553760131,-751.52,0.00041095,10]
[402161210,1768553760141,-1015.29,0.00041095,10]
[402161211,1768553760151,-685.85,0.00041095,10]
[402161212,1768553760160,-518.25,0.00041095,10]
[402161213,1768553760170,-612.29,0.00041095,10]
[402161214,1768553760180,-500.0,0.00041095,10]
[402161215,1768553760190,-806.51,0.00041095,10]
[402161216,1768553760202,-695.39,0.00041095,10]
[402161217,1768553760211,-607.83,0.00041095,10]
[402161218,1768553760221,-549.65,0.00041095,10]
[402161219,1768553760230,-419.2793923,0.00041095,10]
[402161220,1768553760240,-1220.06,0.00041095,10]
[402161221,1768553760250,-1662.06,0.00041095,10]
[402161222,1768553760260,-1639.22,0.00041095,10]
[402161223,1768553760270,-908.6,0.00041095,10]
[402161224,1768553760279,-1617.91,0.00041095,10]
[402161225,1768553760294,-1143.12,0.00041095,10]
[402161226,1768553760304,-500.0,0.00041095,10]
[402161227,1768553760314,-816.75,0.00041095,10]
[402161228,1768553760324,-500.0,0.00041095,10]
[402161229,1768553760334,-257.43452425,0.00041095,10]
[402161230,1768553760344,-716.45,0.00041095,10]
[402161231,1768553760354,-500.0,0.00041095,10]
[402161232,1768553760364,-885.26,0.00041095,10]
[402161233,1768553760374,-678.11,0.00041095,10]
[402161234,1768553760384,-1027.78,0.00041095,10]
[402161235,1768553760394,-1096.77,0.00041095,10]
[402161236,1768553760403,-702.08,0.00041095,10]
[402161237,1768553760414,-681.79,0.00041095,10]
[402161238,1768553760424,-1477.47,0.00041095,10]
[402161239,1768553760433,-989.99,0.00041095,10]
[402161240,1768553760443,-676.3,0.00041095,10]
[402161241,1768553760453,-366.07566325,0.00041095,10]
[402161242,1768553760462,-500.0,0.00041095,10]
[402161243,1768553760472,-912.84,0.00041095,10]
[402161244,1768553760482,-807.54,0.00041095,10]
[402161245,1768553760492,-591.47,0.00041095,10]
[402161246,1768553760501,-1293.68,0.00041095,10]
[402161247,1768553760510,-500.0,0.00041095,10]
[402161248,1768553760520,-618.86,0.00041095,10]
[402161249,1768553760529,-834.67,0.00041095,10]
[402161250,1768553760539,-4949.68,0.00041095,10]
[402161251,1768553760549,-1730.65,0.00041095,10]
[402161252,1768553760558,-500.46,0.00041095,10]
[402161253,1768553760568,-930.98,0.00041095,10]
[402161254,1768553760578,-875.62,0.00041095,10]
[402161255,1768553760588,-471.11475402,0.00041095,10]
[402161256,1768553760598,-605.18495958,0.00041095,10]
[402161257,1768553760608,-1041.0,0.00041095,10]
[402161258,1768553760618,-533.90618737,0.00041095,10]
[402161259,1768553760628,-1262.31,0.00041095,10]
[402161260,1768553760637,-524.92,0.00041095,10]
[402161261,1768553760647,-591.83,0.00041095,10]
[402161262,1768553760659,-614.68,0.00041095,10]
[402161263,1768553760668,-1848.72,0.00041095,10]
[402161264,1768553760678,-790.99,0.00041095,10]
[402161265,1768553760688,-353.65,0.00041095,2]
[402161266,1768553760698,-1044.21,0.00041095,10]
[402161267,1768553760708,-1947.44,0.00041095,10]
[402161268,1768553760718,-500.0,0.00041095,10]
[402161269,1768553760727,-629.32,0.00041095,10]
[402161270,1768553760736,-1553.42,0.00041095,10]
[402161271,1768553760746,-1024.82,0.00041095,10]
[402161272,1768553761001,-795.66,0.00041095,10]
[402161273,1768553761011,-1036.49,0.00041095,10]
[402161274,1768553761020,-1013.98,0.00041095,10]
[402161275,1768553761030,-875.71,0.00041095,10]
[402161276,1768553761039,-548.64,0.00041095,10]
[402161277,1768553761049,-1422.5,0.00041095,10]
[402161278,1768553761059,-562.25,0.00041095,10]
[402161279,1768553761068,-543.96,0.00041095,10]
[402161280,1768553761078,-1126.68,0.00041095,10]
[402161281,1768553761087,-2121.76,0.00041095,10]
[402161282,1768553761097,-532.76,0.00041095,10]
[402161283,1768553761106,-1905.23,0.00041095,10]
[402161284,1768553761117,-502.52,0.00041095,10]
[402161285,1768553761127,-540.07,0.00041095,10]
[402161286,1768553761136,-1016.35,0.00041095,10]
[402161287,1768553761146,-5056.94,0.00041095,10]
[402161288,1768553761155,-592.16,0.00041095,10]
[402161289,1768553761165,-889.56,0.00041095,10]
[402161290,1768553761175,-500.0,0.00041095,10]
[402161291,1768553761185,-1150.45,0.00041095,10]
[402161292,1768553761194,-648.45,0.00041095,10]
[402161293,1768553761204,-1345.33,0.00041095,10]
[402161294,1768553761214,-1052.14,0.00041095,10]
[402161295,1768553761224,-990.43,0.00041095,10]
[402161296,1768553761234,-877.08,0.00041095,10]
[402161297,1768553761244,-1245.81,0.00041095,10]
[402161298,1768553761254,-665.86,0.00041095,10]
[402161299,1768553761264,-1029.8,0.00041095,10]
[402161300,1768553761273,-1298.7,0.00041095,10]
[402161301,1768553761283,-581.72,0.00041095,10]
[402161302,1768553761292,-850.69,0.00041095,10]
[402161303,1768553761301,-995.5,0.00041095,10]
[402161304,1768553761311,-1075.5,0.00041095,10]
[402161305,1768553761320,-519.23,0.00041095,10]
[402161306,1768553761329,-529.03,0.00041095,10]
[402161307,1768553761338,-716.08,0.00041095,10]
[402161308,1768553761347,-500.0,0.00041095,10]
[402161309,1768553761357,-1363.31,0.00041095,10]
[402161310,1768553761366,-598.71,0.00041095,10]
[402161311,1768553761375,-1221.02,0.00041095,10]
[402161312,1768553761385,-823.04,0.00041095,10]
[402161313,1768553761394,-1064.34,0.00041095,10]
[402161314,1768553761403,-2853.19,0.00041095,10]
[402161315,1768553761413,-913.43,0.00041095,10]
[402161316,1768553761423,-591.9,0.00041095,10]
[402161317,1768553761432,-500.0,0.00041095,10]
[402161318,1768553761441,-549.28,0.00041095,10]
[402161319,1768553761451,-2393.97,0.00041095,10]
[402161320,1768553761460,-589.47,0.00041095,10]
[402161321,1768553761469,-2257.21,0.00041095,10]
[402161322,1768553761478,-805.83,0.00041095,10]
[402161323,1768553761489,-546.1,0.00041095,10]
[402161324,1768553761499,-1412.18,0.00041095,10]
[402161325,1768553761508,-500.0,0.00041095,10]
[402161326,1768553761517,-471.02890896,0.00041095,10]
[402161327,1768553761526,-712.99,0.00041095,10]
[402161328,1768553761536,-661.07,0.00041095,10]
[402161329,1768553761545,-732.11,0.00041095,10]
[402161330,1768553761554,-652.47,0.00041095,10]
[402161331,1768553761562,-713.12,0.00041095,10]
[402161332,1768553761571,-1182.17,0.00041095,10]
[402161333,1768553761583,-693.86,0.00041095,10]
[402161334,1768553761592,-714.22,0.00041095,10]
[402161335,1768553761601,-652.5,0.00041095,10]
[402161336,1768553761610,-1245.62,0.00041095,10]
[402161337,1768553761621,-1497.09,0.00041095,10]
[402161338,1768553761630,-1210.4,0.00041095,10]
[402161339,1768553761639,-1212.59,0.00041095,10]
[402161340,1768553761648,-941.66,0.00041095,10]
[402161341,1768553761659,-1223.9,0.00041095,10]
[402161342,1768553761668,-500.0,0.00041095,10]
[402161343,1768553761678,-1292.5,0.00041095,10]
[402161344,1768553761687,-1141.45,0.00041095,10]
[402161345,1768553761697,-885.86,0.00041095,10]
[402161346,1768553761707,-520.6,0.00041095,10]
[402161347,1768553761716,-3901.38,0.00041095,10]
[402161348,1768553761726,-532.57,0.00041095,10]
[402161349,1768553761735,-1219.5,0.00041095,10]
[402161350,1768553761744,-2909.8,0.00041095,10]
[402161351,1768553761753,-858.87,0.00041095,10]
[402161352,1768553761762,-544.68,0.00041095,10]
[402161353,1768553761772,-993.01,0.00041095,10]
[402161354,1768553761781,-1760.07,0.00041095,10]
[402161355,1768553761790,-553.74,0.00041095,10]
[402161356,1768553761799,-1228.85,0.00041095,10]
[402161357,1768553761809,-500.0,0.00041095,10]
[402161358,1768553761818,-1541.19,0.00041095,10]
[402161359,1768553761827,-599.03,0.00041095,10]
[402161360,1768553761836,-1004.55,0.00041095,10]
[402161361,1768553761845,-1256.3,0.00041095,10]
[402161362,1768553761855,-722.08,0.00041095,10]
[402161363,1768553761864,-1627.41,0.00041095,10]
[402161364,1768553761873,-999.49,0.00041095,10]
[402161365,1768553761883,-1143.9,0.00041095,10]
[402161366,1768553761892,-1224.65,0.00041095,10]
[402161367,1768553761901,-560.6,0.00041095,10]
[402161368,1768553761911,-1155.7,0.00041095,10]
[402161369,1768553761920,-500.0,0.00041095,10]
[402161370,1768553761929,-614.31,0.00041095,10]
[402161371,1768553761939,-637.11,0.00041095,10]
[402161372,1768553761948,-2192.51,0.00041095,10]
[402161373,1768553761958,-2225.78,0.00041095,10]
[402161374,1768553761967,-758.24,0.00041095,10]
[402161375,1768553761977,-2013.58,0.00041095,10]
[402161376,1768553761988,-2864.87,0.00041095,10]
[402161377,1768553761997,-808.72,0.00041095,10]
[402161378,1768553762007,-1567.87,0.00041095,10]
[402161379,1768553762016,-518.17,0.00041095,10]
[402161380,1768553762026,-1811.28,0.00041095,10]
[402161381,1768553762035,-558.81,0.00041095,10]
[402161382,1768553762045,-1071.23,0.00041095,10]
[402161383,1768553762054,-659.01,0.00041095,10]
[402161384,1768553762064,-866.89,0.00041095,10]
[402161385,1768553762073,-1032.65,0.00041095,10]
[402161386,1768553762083,-759.31,0.00041095,10]
[402161387,1768553762092,-1999.0,0.00041095,120]
[402161388,1768553762101,-637.41,0.00041095,10]
[402161389,1768553762111,-1020.76,0.00041095,10]
[402161390,1768553762121,-1128.16,0.00041095,10]
[402161391,1768553762131,-547.39,0.00041095,10]
[402161392,1768553762140,-7210.62,0.00041095,10]
[402161393,1768553762150,-5211.07,0.00041095,10]
[402161394,1768553762159,-1681.96,0.00041095,10]
[402161395,1768553762169,-729.24,0.00041095,10]
[402161396,1768553762178,-1064.3,0.00041095,10]
[402161397,1768553762188,-5144.07,0.00041095,10]
[402161398,1768553762198,-521.48,0.00041095,10]
[402161399,1768553762207,-532.27,0.00041095,10]
[402161400,1768553762217,-1000.95,0.00041095,10]
[402161401,1768553762226,-2351.16,0.00041095,10]
[402161402,1768553762236,-194.27280142,0.00041095,10]
[402161403,1768553762245,-672.3,0.00041095,10]
[402161404,1768553762254,-679.92,0.00041095,10]
[402161405,1768553762263,-642.7,0.00041095,10]
[402161406,1768553762272,-1048.19,0.00041095,10]
[402161407,1768553762281,-2044.82,0.00041095,10]
[402161408,1768553762290,-500.0,0.00041095,10]
[402161409,1768553762299,-735.56,0.00041095,10]
[402161410,1768553762308,-804.46,0.00041095,10]
[402161411,1768553762317,-500.0,0.00041095,10]
[402161412,1768553762327,-793.57,0.00041095,10]
[402161413,1768553762337,-1781.11,0.00041095,120]
[402161414,1768553762346,-1159.07,0.00041095,10]
[402161415,1768553762356,-1781.11,0.00041095,120]
[402161416,1768553762365,-1781.11,0.00041095,120]
[402161417,1768553762374,-1781.11,0.00041095,120]
[402161418,1768553762383,-1781.11,0.00041095,120]
[402161419,1768553762393,-1781.11,0.00041095,120]
[402161420,1768553762402,-1781.11,0.00041095,120]
[402161421,1768553762411,-2221.23,0.00041095,10]
[402161422,1768553762420,-1781.11,0.00041095,120]
[402161423,1768553762429,-580.85,0.00041095,10]
[402161424,1768553762439,-941.49,0.00041095,10]
[402161425,1768553762448,-1781.11,0.00041095,120]
[402161426,1768553762457,-1781.11,0.00041095,120]
[402161427,1768553762466,-1781.11,0.00041095,120]
[402161428,1768553762476,-599.94,0.00041095,10]
[402161429,1768553762486,-1781.11,0.00041095,120]
[402161430,1768553762495,-1781.11,0.00041095,120]
[402161431,1768553762505,-1781.11,0.00041095,120]
[402161432,1768553762515,-1781.11,0.00041095,120]
[402161433,1768553762524,-1781.11,0.00041095,120]
[402161434,1768553762534,-677.99,0.00041095,10]
[402161435,1768553762544,-1781.11,0.00041095,120]
[402161436,1768553762554,-1781.11,0.00041095,120]
[402161437,1768553762562,-1781.11,0.00041095,120]
[402161438,1768553762572,-1202.41,0.00041095,10]
[402161439,1768553762586,-1781.11,0.00041095,120]
[402161440,1768553762595,-1781.11,0.00041095,120]
[402161441,1768553762605,-2033.16,0.00041095,10]
[402161442,1768553762615,-2114.42,0.00041095,10]
[402161443,1768553762625,-1524.13,0.00041095,10]
[402161444,1768553762635,-953.55,0.00041095,10]
[402161445,1768553762647,-556.39,0.00041095,10]
[402161446,1768553762658,-1013.89,0.00041095,10]
[402161447,1768553762667,-1302.19,0.00041095,10]
[402161448,1768553762677,-593.7,0.00041095,10]
[402161449,1768553762686,-859.25,0.00041095,10]
[402161450,1768553762696,-623.79,0.00041095,10]
[402161451,1768553762705,-1282.3,0.00041095,10]
[402161452,1768553762714,-187.64913116,0.00041095,10]
[402161453,1768553762724,-606.36,0.00041095,10]
[402161454,1768553762733,-1084.77,0.00041095,10]
[402161455,1768553762749,-781.44,0.00041095,10]
[402161456,1768553762765,-616.11,0.00041095,10]
[402161457,1768553762775,-907.52,0.00041095,10]
[402161458,1768553762784,-731.99,0.00041095,10]
[402161459,1768553762794,-849.36,0.00041095,10]
[402161460,1768553762804,-1477.23,0.00041095,10]
[402161461,1768553762816,-643.32,0.00041095,10]
[402161462,1768553762837,-500.0,0.00041095,10]
[402161463,1768553762857,-823.29,0.00041095,10]
[402161464,1768553762868,-802.79,0.00041095,10]
[402161465,1768553762879,-725.02,0.00041095,10]
[402161466,1768553762888,-1029.59,0.00041095,10]
[402161467,1768553762898,-2502.55,0.00041095,10]
[402161468,1768553762907,-713.0,0.00041095,10]
[402161469,1768553762916,-1172.78,0.00041095,10]
[402161470,1768553762926,-1013.39,0.00041095,10]
[402161471,1768553762935,-764.71,0.00041095,10]
[402161472,1768553762945,-761.36,0.00041095,10]
[402161473,1768553762955,-4884.35,0.00041095,10]
[402161474,1768553762965,-629.83,0.00041095,10]
[402161475,1768553762974,-704.6,0.00041095,10]
[402161476,1768553762984,-1262.69,0.00041095,10]
[402161477,1768553762994,-1064.4,0.00041095,10]
[402161478,1768553763003,-564.83,0.00041095,10]
[402161479,1768553763017,-1260.28,0.00041095,10]
[402161480,1768553763032,-662.32,0.00041095,10]
[402161481,1768553763043,-1785.36,0.00041095,10]
[402161482,1768553763054,-1338.09,0.00041095,10]